[Event "*** Titled Tuesday Blitz"]
[Site "Chess.com"]
[Date "2020.04.28"]
[Round "8"]
[White "GM_LOADING"]
[Black "dpopadic"]
[Result "1-0"]
[WhiteElo "2615"]
[BlackElo "2359"]
[TimeControl "180+1"]
[EndTime "11:35:23 PDT"]
[Termination "GM_LOADING won by checkmate"]

1. e4 {[%clk 0:03:00.9]} 1... c5 {[%clk 0:02:59.8]} 2. Nf3 {[%clk 0:03:00.9]}
2... Nc6 {[%clk 0:02:59.9]} 3. d4 {[%clk 0:03:01.5]} 3... cxd4 {[%clk
0:02:59.5]} 4. Nxd4 {[%clk 0:03:02.4]} 4... Nf6 {[%clk 0:02:59.8]} 5. Nc3 {[%clk
0:03:02.7]} 5... e5 {[%clk 0:03:00]} 6. Ndb5 {[%clk 0:03:03.1]} 6... d6 {[%clk
0:02:59.7]} 7. Bg5 {[%clk 0:03:03.6]} 7... a6 {[%clk 0:02:59.7]} 8. Na3 {[%clk
0:03:04.1]} 8... b5 {[%clk 0:02:59.9]} 9. Bxf6 {[%clk 0:03:04.6]} 9... gxf6
{[%clk 0:02:59.6]} 10. Nd5 {[%clk 0:03:03.2]} 10... Bg7 {[%clk 0:02:59.6]} 11.
c3 {[%clk 0:03:03.2]} 11... f5 {[%clk 0:02:58.8]} 12. exf5 {[%clk 0:03:04.1]}
12... Bxf5 {[%clk 0:02:58.3]} 13. Nc2 {[%clk 0:03:04.5]} 13... O-O {[%clk
0:02:57.8]} 14. Nce3 {[%clk 0:03:05]} 14... Bd7 {[%clk 0:02:57.9]} 15. Bd3
{[%clk 0:03:05.6]} 15... f5 {[%clk 0:02:57.8]} 16. Qh5 {[%clk 0:02:51.8]} 16...
e4 {[%clk 0:02:56.2]} 17. Bc2 {[%clk 0:02:49.8]} 17... Ne5 {[%clk 0:02:56.1]}
18. O-O {[%clk 0:02:35.1]} 18... Be8 {[%clk 0:02:47.9]} 19. Qh3 {[%clk
0:02:28.2]} 19... Bd7 {[%clk 0:02:47.2]} 20. Nf4 {[%clk 0:02:24.4]} 20... Rf6
{[%clk 0:02:39]} 21. Nh5 {[%clk 0:02:03.9]} 21... Rg6 {[%clk 0:02:20.2]} 22.
Nxf5 {[%clk 0:01:26]} 22... Nf3+ {[%clk 0:02:00.2]} 23. Kh1 {[%clk 0:01:17.8]}
23... Ng5 {[%clk 0:01:56.4]} 24. Qg4 {[%clk 0:01:11.6]} 24... Nf7 {[%clk
0:01:44.4]} 25. Qxe4 {[%clk 0:01:06.6]} 25... Re6 {[%clk 0:01:26.5]} 26. Qd3
{[%clk 0:00:35.7]} 26... Ne5 {[%clk 0:01:21.1]} 27. Qd1 {[%clk 0:00:26.8]} 27...
Bf8 {[%clk 0:01:11.3]} 28. Bb3 {[%clk 0:00:24.3]} 28... Qg5 {[%clk 0:01:05.4]}
29. f4 {[%clk 0:00:18.8]} 29... Qxf5 {[%clk 0:01:01.5]} 30. fxe5 {[%clk
0:00:19.1]} 30... Qxe5 {[%clk 0:01:01.7]} 31. Nf6+ {[%clk 0:00:18.4]} 31... Kh8
{[%clk 0:00:57.3]} 32. Nxd7 {[%clk 0:00:18.8]} 32... Qe4 {[%clk 0:00:49.7]} 33.
Bxe6 {[%clk 0:00:18.8]} 33... Qxe6 {[%clk 0:00:49.1]} 34. Nxf8 {[%clk
0:00:18.8]} 34... Qh6 {[%clk 0:00:46]} 35. Qd4+ {[%clk 0:00:18.4]} 35... Kg8
{[%clk 0:00:44.7]} 36. Nd7 {[%clk 0:00:16]} 36... Rd8 {[%clk 0:00:40.9]} 37.
Nf6+ {[%clk 0:00:15.6]} 37... Kf7 {[%clk 0:00:37.3]} 38. Rae1 {[%clk 0:00:15.1]}
38... Qg6 {[%clk 0:00:34]} 39. Nd5+ {[%clk 0:00:11.9]} 39... Kg8 {[%clk
0:00:33.4]} 40. Ne7# {[%clk 0:00:12.2]} 1-0

[Event "*** Titled Tuesday Blitz"]
[Site "Chess.com"]
[Date "2020.04.28"]
[Round "8"]
[White "fidezivkovic"]
[Black "GracefulYear"]
[Result "1-0"]
[WhiteElo "2315"]
[BlackElo "2439"]
[TimeControl "180+1"]
[EndTime "11:35:23 PDT"]
[Termination "fidezivkovic won by checkmate"]

1. e4 {[%clk 0:03:00.9]} 1... g6 {[%clk 0:02:59.8]} 2. d4 {[%clk 0:03:00.1]}
2... Bg7 {[%clk 0:03:00.2]} 3. Nc3 {[%clk 0:03:00.2]} 3... c6 {[%clk 0:03:00.3]}
4. f4 {[%clk 0:02:56.3]} 4... d5 {[%clk 0:03:00.1]} 5. e5 {[%clk 0:02:55.3]}
5... h5 {[%clk 0:02:51.5]} 6. Nf3 {[%clk 0:02:52.1]} 6... Bg4 {[%clk 0:02:44.9]}
7. Be3 {[%clk 0:02:50.9]} 7... e6 {[%clk 0:02:44.3]} 8. Be2 {[%clk 0:02:44.6]}
8... Ne7 {[%clk 0:02:38.2]} 9. Qd2 {[%clk 0:02:43]} 9... Nd7 {[%clk 0:02:34.8]}
10. O-O-O {[%clk 0:02:39.5]} 10... Nb6 {[%clk 0:02:34.1]} 11. Bf2 {[%clk
0:02:33.2]} 11... Bxf3 {[%clk 0:02:26.4]} 12. Bxf3 {[%clk 0:02:32.2]} 12... Nc4
{[%clk 0:02:26.2]} 13. Qe2 {[%clk 0:02:31.2]} 13... Qb6 {[%clk 0:02:25.4]} 14.
b3 {[%clk 0:02:26.7]} 14... Qa5 {[%clk 0:02:24.7]} 15. Nb1 {[%clk 0:02:11.9]}
15... Na3 {[%clk 0:02:04.4]} 16. Be1 {[%clk 0:02:05.7]} 16... Qb6 {[%clk
0:01:36.2]} 17. Nxa3 {[%clk 0:02:04.6]} 17... Nf5 {[%clk 0:01:35.6]} 18. Bf2
{[%clk 0:01:58.6]} 18... a5 {[%clk 0:01:34.6]} 19. Qd2 {[%clk 0:01:47.9]} 19...
a4 {[%clk 0:01:33.5]} 20. b4 {[%clk 0:01:47.1]} 20... Bf8 {[%clk 0:01:33.3]} 21.
c3 {[%clk 0:01:46]} 21... Qc7 {[%clk 0:01:13.1]} 22. g3 {[%clk 0:01:44.5]} 22...
b6 {[%clk 0:01:12.8]} 23. Kb1 {[%clk 0:01:32.5]} 23... c5 {[%clk 0:01:12.5]} 24.
Nb5 {[%clk 0:01:31.5]} 24... Qc6 {[%clk 0:01:10.6]} 25. Nd6+ {[%clk 0:01:30.3]}
25... Nxd6 {[%clk 0:01:10.4]} 26. exd6 {[%clk 0:01:29]} 26... Bxd6 {[%clk
0:01:11.3]} 27. dxc5 {[%clk 0:01:27.4]} 27... bxc5 {[%clk 0:01:12.2]} 28. c4
{[%clk 0:01:26.2]} 28... Rb8 {[%clk 0:00:58.2]} 29. cxd5 {[%clk 0:01:23.9]}
29... Qa6 {[%clk 0:00:50.5]} 30. dxe6 {[%clk 0:01:09.6]} 30... Rxb4+ {[%clk
0:00:49.1]} 31. Ka1 {[%clk 0:01:06.6]} 31... Ke7 {[%clk 0:00:39.7]} 32. exf7
{[%clk 0:00:48.5]} 32... Rd8 {[%clk 0:00:17.3]} 33. Rhe1+ {[%clk 0:00:46.5]}
33... Kf8 {[%clk 0:00:15.3]} 34. Qc3 {[%clk 0:00:38.9]} 34... Kxf7 {[%clk
0:00:09.6]} 35. Bd5+ {[%clk 0:00:34.1]} 35... Kf8 {[%clk 0:00:08.4]} 36. Qh8#
{[%clk 0:00:32.1]} 1-0

[Event "*** Titled Tuesday Blitz"]
[Site "Chess.com"]
[Date "2020.04.28"]
[Round "8"]
[White "Andreikka"]
[Black "Trankuilizer"]
[Result "1-0"]
[WhiteElo "2960"]
[BlackElo "2520"]
[TimeControl "180+1"]
[EndTime "11:35:25 PDT"]
[Termination "Andreikka won on time"]

1. c4 {[%clk 0:03:00.9]} 1... Nf6 {[%clk 0:02:59.3]} 2. Nc3 {[%clk 0:02:59.7]}
2... g6 {[%clk 0:02:59.5]} 3. e4 {[%clk 0:02:59.4]} 3... d6 {[%clk 0:03:00]} 4.
d4 {[%clk 0:02:59.2]} 4... Bg7 {[%clk 0:03:00.6]} 5. Nf3 {[%clk 0:02:58.2]} 5...
O-O {[%clk 0:03:01.2]} 6. Be2 {[%clk 0:02:58.4]} 6... Nbd7 {[%clk 0:03:01.8]} 7.
O-O {[%clk 0:02:57.6]} 7... e5 {[%clk 0:03:02.4]} 8. Be3 {[%clk 0:02:46.4]} 8...
c6 {[%clk 0:03:01]} 9. Re1 {[%clk 0:02:43.3]} 9... Re8 {[%clk 0:02:56.5]} 10. d5
{[%clk 0:02:43]} 10... c5 {[%clk 0:02:56.7]} 11. Nd2 {[%clk 0:02:41.7]} 11...
Rf8 {[%clk 0:02:56.2]} 12. a3 {[%clk 0:02:33]} 12... Ne8 {[%clk 0:02:55.4]} 13.
b4 {[%clk 0:02:29.7]} 13... b6 {[%clk 0:02:55.7]} 14. g4 {[%clk 0:02:20.6]}
14... Qh4 {[%clk 0:02:42.5]} 15. f3 {[%clk 0:02:16.2]} 15... Bh6 {[%clk
0:02:40.3]} 16. Bf2 {[%clk 0:02:16.6]} 16... Qe7 {[%clk 0:02:33]} 17. h4 {[%clk
0:02:16.3]} 17... Bf4 {[%clk 0:02:24.4]} 18. Bd3 {[%clk 0:02:16.7]} 18... Kh8
{[%clk 0:02:07.2]} 19. Ne2 {[%clk 0:02:14.8]} 19... Bh6 {[%clk 0:02:07.4]} 20.
Nf1 {[%clk 0:02:13.7]} 20... Bg7 {[%clk 0:01:35.6]} 21. Qd2 {[%clk 0:02:11.1]}
21... Ndf6 {[%clk 0:01:27.9]} 22. Neg3 {[%clk 0:02:07.6]} 22... Ng8 {[%clk
0:01:27.5]} 23. h5 {[%clk 0:02:08]} 23... Bh6 {[%clk 0:01:23.9]} 24. Qb2 {[%clk
0:02:08.3]} 24... Ng7 {[%clk 0:01:18.2]} 25. hxg6 {[%clk 0:02:03.2]} 25... fxg6
{[%clk 0:01:17.1]} 26. Kg2 {[%clk 0:02:03.8]} 26... Bf4 {[%clk 0:00:49.4]} 27.
Nh2 {[%clk 0:01:58.2]} 27... Qg5 {[%clk 0:00:47.2]} 28. Rh1 {[%clk 0:01:57.9]}
28... Rf7 {[%clk 0:00:40.6]} 29. Nhf1 {[%clk 0:01:53.4]} 29... Bxg4 {[%clk
0:00:39.3]} 30. fxg4 {[%clk 0:01:52.8]} 30... Raf8 {[%clk 0:00:33.7]} 31. Qe2
{[%clk 0:01:50.5]} 31... Nf6 {[%clk 0:00:31.7]} 32. Bg1 {[%clk 0:01:33.6]} 32...
Nxg4 {[%clk 0:00:29.5]} 33. Rh3 {[%clk 0:01:34]} 33... h5 {[%clk 0:00:27.1]} 34.
Kh1 {[%clk 0:01:20.2]} 34... Kg8 {[%clk 0:00:21.9]} 35. Qg2 {[%clk 0:01:16.7]}
35... Bxg3 {[%clk 0:00:16]} 36. Rxg3 {[%clk 0:01:16.7]} 36... Rf2 {[%clk
0:00:10.7]} 37. Bxf2 {[%clk 0:01:16.3]} 37... Rxf2 {[%clk 0:00:09.3]} 38. Rxg4
{[%clk 0:01:15.9]} 38... Rxg2 {[%clk 0:00:06.1]} 39. Rxg5 {[%clk 0:01:15.9]}
39... Rxg5 {[%clk 0:00:07]} 40. bxc5 {[%clk 0:01:16.3]} 40... dxc5 {[%clk
0:00:06.1]} 41. a4 {[%clk 0:01:16.8]} 41... Rg4 {[%clk 0:00:01.7]} 42. a5 {[%clk
0:01:17.1]} 42... Rf4 {[%clk 0:00:01.8]} 43. axb6 {[%clk 0:01:17.7]} 43... axb6
{[%clk 0:00:02]} 44. Ra8+ {[%clk 0:01:18.4]} 44... Kh7 {[%clk 0:00:01.5]} 45.
Rb8 {[%clk 0:01:18.9]} 45... Rf6 {[%clk 0:00:01.8]} 46. Kg2 {[%clk 0:01:18.4]}
46... g5 {[%clk 0:00:01.5]} 47. Be2 {[%clk 0:01:18]} 47... g4 {[%clk 0:00:01.5]}
48. Ng3 {[%clk 0:01:17.3]} 1-0

[Event "*** Titled Tuesday Blitz"]
[Site "Chess.com"]
[Date "2020.04.28"]
[Round "8"]
[White "Ranindu2003"]
[Black "MichailovM"]
[Result "0-1"]
[WhiteElo "2525"]
[BlackElo "2409"]
[TimeControl "180+1"]
[EndTime "11:35:26 PDT"]
[Termination "MichailovM won by resignation"]

1. e4 {[%clk 0:03:00.9]} 1... e6 {[%clk 0:02:58.9]} 2. d4 {[%clk 0:03:00.5]}
2... d5 {[%clk 0:02:59.2]} 3. Nd2 {[%clk 0:03:01.1]} 3... Nf6 {[%clk 0:02:59.2]}
4. e5 {[%clk 0:03:00.7]} 4... Nfd7 {[%clk 0:02:59.8]} 5. Bd3 {[%clk 0:03:01.3]}
5... c5 {[%clk 0:03:00.1]} 6. c3 {[%clk 0:03:02]} 6... Nc6 {[%clk 0:03:00.8]} 7.
Ne2 {[%clk 0:03:02.6]} 7... cxd4 {[%clk 0:03:01.2]} 8. cxd4 {[%clk 0:03:03.5]}
8... f6 {[%clk 0:03:01.9]} 9. exf6 {[%clk 0:03:03.2]} 9... Nxf6 {[%clk
0:03:02.8]} 10. Nf3 {[%clk 0:03:03.3]} 10... Bd6 {[%clk 0:03:03.1]} 11. O-O
{[%clk 0:03:02.7]} 11... Qc7 {[%clk 0:03:03.6]} 12. Bg5 {[%clk 0:03:02.8]} 12...
O-O {[%clk 0:03:04.2]} 13. a3 {[%clk 0:02:55.3]} 13... Nh5 {[%clk 0:02:57.3]}
14. Nc3 {[%clk 0:02:43.7]} 14... a6 {[%clk 0:02:53]} 15. Rc1 {[%clk 0:02:35.7]}
15... Nf4 {[%clk 0:02:44.4]} 16. Bxf4 {[%clk 0:02:13.9]} 16... Bxf4 {[%clk
0:02:43.2]} 17. Rb1 {[%clk 0:01:57.2]} 17... g6 {[%clk 0:02:37.2]} 18. Ne2
{[%clk 0:01:54]} 18... Qg7 {[%clk 0:02:34]} 19. Re1 {[%clk 0:01:42.3]} 19... Bd6
{[%clk 0:02:33.2]} 20. Bc2 {[%clk 0:01:27.1]} 20... Bd7 {[%clk 0:02:28.9]} 21.
Ng3 {[%clk 0:01:25.9]} 21... Rf4 {[%clk 0:02:26.9]} 22. Ba4 {[%clk 0:00:59.8]}
22... b5 {[%clk 0:02:20.1]} 23. Bb3 {[%clk 0:00:59.6]} 23... Nxd4 {[%clk
0:02:14.1]} 24. Nxd4 {[%clk 0:00:58.4]} 24... Qxd4 {[%clk 0:02:01.4]} 25. Qe2
{[%clk 0:00:49.4]} 25... Raf8 {[%clk 0:01:59.7]} 26. Rf1 {[%clk 0:00:48.5]}
26... Bc5 {[%clk 0:01:59.4]} 27. Nh1 {[%clk 0:00:47.9]} 27... Re4 {[%clk
0:01:31.3]} 28. Qc2 {[%clk 0:00:43.3]} 28... a5 {[%clk 0:01:31.3]} 29. Rbd1
{[%clk 0:00:34.3]} 29... Qe5 {[%clk 0:01:31]} 30. Qxc5 {[%clk 0:00:32.6]} 30...
a4 {[%clk 0:01:24.1]} 31. Ba2 {[%clk 0:00:32.5]} 31... Re2 {[%clk 0:01:21.7]}
32. Ng3 {[%clk 0:00:22.8]} 32... Rxb2 {[%clk 0:01:19.9]} 33. Rfe1 {[%clk
0:00:18.4]} 33... Qf6 {[%clk 0:01:13.9]} 34. Re2 {[%clk 0:00:12.9]} 34... Rxe2
{[%clk 0:01:09.8]} 35. Nxe2 {[%clk 0:00:13.8]} 35... Rc8 {[%clk 0:01:09.9]} 36.
Qb4 {[%clk 0:00:11.3]} 36... Rc2 {[%clk 0:01:05.9]} 37. Bb1 {[%clk 0:00:06.6]}
37... Rxe2 {[%clk 0:01:04.8]} 38. Qc5 {[%clk 0:00:07.2]} 38... Qe5 {[%clk
0:00:58.7]} 39. Qa7 {[%clk 0:00:06.7]} 39... Re1+ {[%clk 0:00:58]} 0-1

[Event "*** Titled Tuesday Blitz"]
[Site "Chess.com"]
[Date "2020.04.28"]
[Round "8"]
[White "GMStefanova"]
[Black "Alohamora11"]
[Result "1-0"]
[WhiteElo "2704"]
[BlackElo "2524"]
[TimeControl "180+1"]
[EndTime "11:35:28 PDT"]
[Termination "GMStefanova won by resignation"]

1. Nf3 {[%clk 0:03:00.9]} 1... c5 {[%clk 0:03:00.1]} 2. g3 {[%clk 0:03:00.4]}
2... g6 {[%clk 0:03:00.5]} 3. c3 {[%clk 0:02:58.1]} 3... Bg7 {[%clk 0:02:58.3]}
4. d4 {[%clk 0:02:58.3]} 4... cxd4 {[%clk 0:02:58.1]} 5. cxd4 {[%clk 0:02:58.2]}
5... d5 {[%clk 0:02:58.6]} 6. Nc3 {[%clk 0:02:58]} 6... Nc6 {[%clk 0:02:59.1]}
7. Bg2 {[%clk 0:02:57.5]} 7... Nf6 {[%clk 0:02:59.6]} 8. Ne5 {[%clk 0:02:57.2]}
8... O-O {[%clk 0:02:53.1]} 9. Nxc6 {[%clk 0:02:57]} 9... bxc6 {[%clk 0:02:54]}
10. O-O {[%clk 0:02:56.9]} 10... a5 {[%clk 0:02:37.8]} 11. Na4 {[%clk
0:02:55.2]} 11... Nd7 {[%clk 0:02:35.7]} 12. b3 {[%clk 0:02:51.9]} 12... e6
{[%clk 0:02:27.8]} 13. Ba3 {[%clk 0:02:51]} 13... Re8 {[%clk 0:02:27.4]} 14. Rc1
{[%clk 0:02:50.7]} 14... Bb7 {[%clk 0:02:24]} 15. e3 {[%clk 0:02:49.8]} 15...
Rc8 {[%clk 0:02:21.5]} 16. f4 {[%clk 0:02:46.7]} 16... Ba6 {[%clk 0:02:16.4]}
17. Rf2 {[%clk 0:02:45.2]} 17... Bb5 {[%clk 0:02:16.9]} 18. Nc5 {[%clk
0:02:43.3]} 18... Nxc5 {[%clk 0:02:07.4]} 19. Bxc5 {[%clk 0:02:42.6]} 19... f6
{[%clk 0:02:00.4]} 20. e4 {[%clk 0:02:38]} 20... dxe4 {[%clk 0:01:47.7]} 21.
Bxe4 {[%clk 0:02:37.4]} 21... e5 {[%clk 0:01:48.1]} 22. dxe5 {[%clk 0:02:36.8]}
22... fxe5 {[%clk 0:01:49]} 23. f5 {[%clk 0:02:35.1]} 23... Qxd1+ {[%clk
0:01:30.4]} 24. Rxd1 {[%clk 0:02:34.1]} 24... gxf5 {[%clk 0:01:28.9]} 25. Rxf5
{[%clk 0:02:29.5]} 25... Rcd8 {[%clk 0:01:22.4]} 26. Re1 {[%clk 0:02:21.5]}
26... Bd3 {[%clk 0:01:17.2]} 27. Bb6 {[%clk 0:02:11.1]} 27... Bxe4 {[%clk
0:01:13.7]} 28. Rxe4 {[%clk 0:02:10.7]} 28... Rd1+ {[%clk 0:01:05]} 29. Rf1
{[%clk 0:02:10.3]} 29... Rd5 {[%clk 0:00:57]} 30. Rc1 {[%clk 0:02:07.8]} 30...
Re6 {[%clk 0:00:48.9]} 31. a4 {[%clk 0:02:06.8]} 31... Rd3 {[%clk 0:00:46.3]}
32. Bxa5 {[%clk 0:02:02.1]} 32... Rxb3 {[%clk 0:00:45.8]} 33. Rc5 {[%clk
0:01:51.8]} 33... Ra3 {[%clk 0:00:31.9]} 34. Bc7 {[%clk 0:01:43.4]} 34... Kf7
{[%clk 0:00:15.3]} 35. a5 {[%clk 0:01:38.1]} 35... Bf8 {[%clk 0:00:12.6]} 36.
Rcxe5 {[%clk 0:01:31.9]} 36... Bc5+ {[%clk 0:00:12.7]} 37. Kg2 {[%clk
0:01:25.1]} 37... Ra2+ {[%clk 0:00:12.7]} 38. Kh3 {[%clk 0:01:24.7]} 38... Rh6+
{[%clk 0:00:06.3]} 39. Kg4 {[%clk 0:01:19.7]} 39... Rg6+ {[%clk 0:00:06.3]} 40.
Rg5 {[%clk 0:01:16.6]} 40... Be7 {[%clk 0:00:05.3]} 41. Rxg6 {[%clk 0:01:14]}
41... hxg6 {[%clk 0:00:06.2]} 42. h4 {[%clk 0:01:11.2]} 42... c5 {[%clk
0:00:06.3]} 43. Bb6 {[%clk 0:01:08.6]} 43... Rc2 {[%clk 0:00:03.9]} 44. a6
{[%clk 0:01:06.9]} 44... Ra2 {[%clk 0:00:04.2]} 45. a7 {[%clk 0:01:06.5]} 45...
Ra6 {[%clk 0:00:04.7]} 46. h5 {[%clk 0:01:02]} 46... gxh5+ {[%clk 0:00:04.8]}
47. Kxh5 {[%clk 0:01:01.9]} 47... Ke8 {[%clk 0:00:05.3]} 48. Bxc5 {[%clk
0:00:59.6]} 48... Ra5 {[%clk 0:00:05.9]} 49. Rxe7+ {[%clk 0:00:59.4]} 49... Kd8
{[%clk 0:00:06.8]} 50. Re5 {[%clk 0:00:59]} 1-0

[Event "*** Titled Tuesday Blitz"]
[Site "Chess.com"]
[Date "2020.04.28"]
[Round "8"]
[White "bmt011"]
[Black "tufferguy"]
[Result "0-1"]
[WhiteElo "2055"]
[BlackElo "2376"]
[TimeControl "180+1"]
[EndTime "11:35:28 PDT"]
[Termination "tufferguy won by checkmate"]

1. d4 {[%clk 0:03:00.9]} 1... d5 {[%clk 0:02:57.1]} 2. Bf4 {[%clk 0:03:01.2]}
2... Bf5 {[%clk 0:02:56.1]} 3. c4 {[%clk 0:02:54.8]} 3... e6 {[%clk 0:02:51]} 4.
Qb3 {[%clk 0:02:50.5]} 4... Nc6 {[%clk 0:02:34.9]} 5. e3 {[%clk 0:02:39.1]} 5...
Na5 {[%clk 0:02:18.3]} 6. Qa4+ {[%clk 0:02:08.3]} 6... c6 {[%clk 0:02:16.5]} 7.
Nd2 {[%clk 0:02:04.2]} 7... Nxc4 {[%clk 0:01:51.3]} 8. Nxc4 {[%clk 0:02:02.9]}
8... dxc4 {[%clk 0:01:48.1]} 9. Bxc4 {[%clk 0:01:22.5]} 9... b5 {[%clk
0:01:31.1]} 10. Qa6 {[%clk 0:01:21.8]} 10... Bb4+ {[%clk 0:01:02.2]} 11. Ke2
{[%clk 0:01:21.4]} 11... bxc4 {[%clk 0:00:59.3]} 12. Qxc4 {[%clk 0:01:11.8]}
12... Be7 {[%clk 0:00:48.3]} 13. Qxc6+ {[%clk 0:01:11.5]} 13... Kf8 {[%clk
0:00:47.4]} 14. Nf3 {[%clk 0:00:52.7]} 14... Rc8 {[%clk 0:00:24]} 15. Qb7 {[%clk
0:00:35.8]} 15... Rc2+ {[%clk 0:00:22.9]} 16. Kd1 {[%clk 0:00:29.7]} 16... Nf6
{[%clk 0:00:19.2]} 17. Nd2 {[%clk 0:00:20.4]} 17... Rc8 {[%clk 0:00:11.9]} 18.
Qxa7 {[%clk 0:00:17]} 18... h6 {[%clk 0:00:09.2]} 19. Ke2 {[%clk 0:00:16.6]}
19... g5 {[%clk 0:00:09.3]} 20. Be5 {[%clk 0:00:15.8]} 20... Kg7 {[%clk
0:00:09.3]} 21. Rac1 {[%clk 0:00:16]} 21... Qd5 {[%clk 0:00:05.7]} 22. f3 {[%clk
0:00:13.3]} 22... Qb5+ {[%clk 0:00:05.3]} 23. Kf2 {[%clk 0:00:11.9]} 23... Rxc1
{[%clk 0:00:03.6]} 24. Rxc1 {[%clk 0:00:11.2]} 24... Qxb2 {[%clk 0:00:04]} 25.
Rd1 {[%clk 0:00:06.9]} 25... Re8 {[%clk 0:00:02.4]} 26. Qa4 {[%clk 0:00:05.3]}
26... Qc2 {[%clk 0:00:02.8]} 27. Qxe8 {[%clk 0:00:04.1]} 27... Qxd1 {[%clk
0:00:01.8]} 28. Qxe7 {[%clk 0:00:04.2]} 28... Qxd2+ {[%clk 0:00:01.8]} 29. Kg3
{[%clk 0:00:04.1]} 29... Qe1# {[%clk 0:00:02.4]} 0-1

[Event "*** Titled Tuesday Blitz"]
[Site "Chess.com"]
[Date "2020.04.28"]
[Round "8"]
[White "Alexandercs432"]
[Black "LuisFSiles"]
[Result "0-1"]
[WhiteElo "2115"]
[BlackElo "2297"]
[TimeControl "180+1"]
[EndTime "11:35:29 PDT"]
[Termination "LuisFSiles won on time"]

1. e4 {[%clk 0:03:00.9]} 1... c5 {[%clk 0:02:57.9]} 2. Nf3 {[%clk 0:03:00.4]}
2... d6 {[%clk 0:02:57.9]} 3. Bb5+ {[%clk 0:02:57.4]} 3... Nd7 {[%clk
0:02:55.9]} 4. c3 {[%clk 0:02:55.9]} 4... Nf6 {[%clk 0:02:53.7]} 5. Qe2 {[%clk
0:02:54.5]} 5... g6 {[%clk 0:02:50.3]} 6. O-O {[%clk 0:02:53.7]} 6... Bg7 {[%clk
0:02:50.4]} 7. Rd1 {[%clk 0:02:49.8]} 7... O-O {[%clk 0:02:47.7]} 8. Ba4 {[%clk
0:02:49.9]} 8... Ne5 {[%clk 0:02:43.3]} 9. h3 {[%clk 0:02:42.7]} 9... b6 {[%clk
0:02:28.9]} 10. Bc2 {[%clk 0:02:37]} 10... Bb7 {[%clk 0:02:25.7]} 11. d4 {[%clk
0:02:30.8]} 11... Nxf3+ {[%clk 0:02:24.6]} 12. Qxf3 {[%clk 0:02:25.4]} 12...
cxd4 {[%clk 0:02:13.2]} 13. cxd4 {[%clk 0:02:22.8]} 13... Rc8 {[%clk 0:02:02.2]}
14. Nc3 {[%clk 0:02:16.3]} 14... b5 {[%clk 0:02:01.6]} 15. a3 {[%clk 0:02:05.3]}
15... a5 {[%clk 0:02:01.5]} 16. Bb3 {[%clk 0:01:32.7]} 16... b4 {[%clk
0:01:55.5]} 17. axb4 {[%clk 0:01:33.6]} 17... axb4 {[%clk 0:01:55.4]} 18. Nd5
{[%clk 0:01:33.4]} 18... Nxd5 {[%clk 0:01:27.5]} 19. Bxd5 {[%clk 0:01:31.6]}
19... Qb6 {[%clk 0:01:21.4]} 20. Bxb7 {[%clk 0:01:13.2]} 20... Qxb7 {[%clk
0:01:22.3]} 21. Be3 {[%clk 0:01:01.1]} 21... Rc2 {[%clk 0:01:19]} 22. Rab1
{[%clk 0:00:43.5]} 22... f5 {[%clk 0:01:16.4]} 23. exf5 {[%clk 0:00:20.1]} 23...
Qxf3 {[%clk 0:01:17.3]} 24. gxf3 {[%clk 0:00:19.7]} 24... Rxf5 {[%clk
0:01:17.5]} 25. Kg2 {[%clk 0:00:16.1]} 25... Rd5 {[%clk 0:01:11.2]} 26. Rd3
{[%clk 0:00:14]} 26... e5 {[%clk 0:01:07.9]} 27. Rb3 {[%clk 0:00:13.3]} 27...
exd4 {[%clk 0:01:05.1]} 28. Bf4 {[%clk 0:00:12.2]} 28... Rc4 {[%clk 0:00:56.7]}
29. Rd1 {[%clk 0:00:10.8]} 29... d3 {[%clk 0:00:55.7]} 30. Bd2 {[%clk
0:00:09.8]} 30... Rdd4 {[%clk 0:00:40.8]} 31. Be3 {[%clk 0:00:08.3]} 31... Rd5
{[%clk 0:00:41.1]} 32. Bd2 {[%clk 0:00:08.4]} 32... Rb5 {[%clk 0:00:40.4]} 33.
Rxd3 {[%clk 0:00:06.7]} 33... Bxb2 {[%clk 0:00:38]} 34. Rxd6 {[%clk 0:00:05.7]}
34... Rf5 {[%clk 0:00:34.8]} 35. Rd7 {[%clk 0:00:04.9]} 35... Rf7 {[%clk
0:00:34.3]} 36. Bh6 {[%clk 0:00:02.4]} 36... Bg7 {[%clk 0:00:27.4]} 37. Rd8+
{[%clk 0:00:01.9]} 37... Rf8 {[%clk 0:00:27.6]} 0-1

[Event "*** Titled Tuesday Blitz"]
[Site "Chess.com"]
[Date "2020.04.28"]
[Round "8"]
[White "shyam"]
[Black "TargetA"]
[Result "1-0"]
[WhiteElo "2700"]
[BlackElo "2502"]
[TimeControl "180+1"]
[EndTime "11:35:31 PDT"]
[Termination "shyam won by resignation"]

1. d4 {[%clk 0:02:59.7]} 1... d5 {[%clk 0:02:59.3]} 2. Nc3 {[%clk 0:02:59.5]}
2... Nf6 {[%clk 0:02:56.2]} 3. Bf4 {[%clk 0:02:59.9]} 3... g6 {[%clk 0:02:50.6]}
4. e3 {[%clk 0:02:58.8]} 4... Bg7 {[%clk 0:02:49.8]} 5. h4 {[%clk 0:02:59.4]}
5... c5 {[%clk 0:02:41.7]} 6. h5 {[%clk 0:02:45.7]} 6... cxd4 {[%clk 0:02:30.3]}
7. exd4 {[%clk 0:02:30.9]} 7... Nxh5 {[%clk 0:02:23.5]} 8. Rxh5 {[%clk 0:02:31]}
8... gxh5 {[%clk 0:02:23.3]} 9. Qxh5 {[%clk 0:02:31.9]} 9... Nc6 {[%clk
0:01:48.5]} 10. O-O-O {[%clk 0:02:29.2]} 10... e6 {[%clk 0:01:39.1]} 11. Nb5
{[%clk 0:02:23.8]} 11... O-O {[%clk 0:01:38.4]} 12. Bd3 {[%clk 0:02:22.7]} 12...
f5 {[%clk 0:01:28.7]} 13. Nf3 {[%clk 0:02:22.3]} 13... a6 {[%clk 0:01:18.7]} 14.
Rh1 {[%clk 0:02:08.9]} 14... axb5 {[%clk 0:00:40.6]} 15. Qxh7+ {[%clk
0:01:50.5]} 15... Kf7 {[%clk 0:00:41.1]} 16. Ng5+ {[%clk 0:01:51.4]} 16... Kf6
{[%clk 0:00:34]} 17. Be5+ {[%clk 0:01:38.6]} 17... Nxe5 {[%clk 0:00:28.9]} 18.
dxe5+ {[%clk 0:01:39.5]} 18... Kxe5 {[%clk 0:00:23.1]} 19. Qxg7+ {[%clk
0:01:38.2]} 19... Kd6 {[%clk 0:00:23.3]} 20. f4 {[%clk 0:01:25.2]} 20... Qf6
{[%clk 0:00:16.1]} 21. Qxf6 {[%clk 0:01:10.4]} 21... Rxf6 {[%clk 0:00:17]} 22.
Rh8 {[%clk 0:01:11.3]} 22... b6 {[%clk 0:00:15.8]} 23. a3 {[%clk 0:00:57.7]}
23... b4 {[%clk 0:00:15.5]} 24. axb4 {[%clk 0:00:57.5]} 24... Bb7 {[%clk
0:00:16.1]} 25. Rh7 {[%clk 0:00:57.1]} 25... Rb8 {[%clk 0:00:14.1]} 26. Nf7+
{[%clk 0:00:55.2]} 26... Rxf7 {[%clk 0:00:11.4]} 27. Rxf7 {[%clk 0:00:56.1]}
27... d4 {[%clk 0:00:11.6]} 28. Rg7 {[%clk 0:00:51.7]} 28... Be4 {[%clk
0:00:10.6]} 29. Kd2 {[%clk 0:00:51.3]} 29... Rc8 {[%clk 0:00:10.3]} 30. c3
{[%clk 0:00:39.2]} 30... dxc3+ {[%clk 0:00:09.7]} 31. bxc3 {[%clk 0:00:40.1]}
31... e5 {[%clk 0:00:09.9]} 32. Rg6+ {[%clk 0:00:34.6]} 32... Ke7 {[%clk
0:00:09.6]} 33. Bxe4 {[%clk 0:00:30.8]} 33... fxe4 {[%clk 0:00:10.5]} 34. fxe5
{[%clk 0:00:31.7]} 34... Rc4 {[%clk 0:00:08.6]} 35. Rxb6 {[%clk 0:00:29.9]}
35... e3+ {[%clk 0:00:07.1]} 36. Kxe3 {[%clk 0:00:30.4]} 36... Rxc3+ {[%clk
0:00:08]} 37. Kf4 {[%clk 0:00:30.3]} 37... Rc4+ {[%clk 0:00:08.2]} 38. Kf5
{[%clk 0:00:30.7]} 38... Rc2 {[%clk 0:00:09.1]} 39. Rb7+ {[%clk 0:00:31.2]} 1-0